fUSD/lending_fUSD_20260605
["ID","MTS","AMOUNT","RATE_DAILY","PERIOD"]
[424215712,1780669864000,-200.0,0.00028498,2]
[424215711,1780669864000,-671.45,0.00028497,7]
[424215702,1780669864000,-681.56,0.00028395,30]
[424215703,1780669864000,-2233.22,0.00028397,30]
[424215700,1780669864000,-1458.97,0.0002838,30]
[424215707,1780669864000,-681.56,0.00028444,2]
[424215705,1780669864000,-2266.07,0.00028429,7]
[424215677,1780669864000,-2000.0,0.00028,2]
[424215693,1780669864000,-755.69,0.000283,14]
[424215674,1780669864000,-961.57817154,0.00028,5]
[424215665,1780669864000,-203.52025861,0.00027964,2]
[424215680,1780669864000,-1227.0,0.00028086,2]
[424215706,1780669864000,-2342.93,0.00028432,7]
[424215660,1780669864000,-180.0,0.00027857,2]
[424215657,1780669864000,-178.26572876,0.00027778,2]
[424215658,1780669864000,-172.41678677,0.00027778,2]
[424215652,1780669864000,-394.74986769,0.00027778,2]
[424215653,1780669864000,-154.01186308,0.00027778,2]
[424215654,1780669864000,-161.72438462,0.00027778,2]
[424215656,1780669864000,-181.77187172,0.00027778,2]
[424215655,1780669864000,-208.3933231,0.00027778,2]
[424215659,1780669864000,-187.96820158,0.00027798,2]
[424215662,1780669864000,-755.69,0.000279,14]
[424215670,1780669864000,-51753.80100521,0.00028,2]
[424215671,1780669864000,-271.9640699,0.00028,30]
[424215672,1780669864000,-160.0,0.00028,2]
[424215673,1780669864000,-325.0,0.00028,2]
[424215663,1780669864000,-175.42472459,0.00027964,2]
[424215661,1780669864000,-340.90803163,0.00027879,2]
[424215664,1780669864000,-172.54050861,0.00027964,2]
[424215669,1780669864000,-1352.31361388,0.00028,2]
[424215666,1780669864000,-168.17839415,0.00027964,2]
[424215668,1780669864000,-200.0,0.00027982,2]
[424215667,1780669864000,-163.133714,0.00027964,2]
[424215675,1780669864000,-600.0,0.00028,2]
[424215685,1780669864000,-150.0,0.00028141,2]
[424215686,1780669864000,-150.0,0.00028141,2]
[424215676,1780669864000,-215.77576141,0.00028,10]
[424215681,1780669864000,-1093.69,0.000281,7]
[424215679,1780669864000,-1273.0,0.00028086,2]
[424215704,1780669864000,-671.45,0.00028399,30]
[424215760,1780669864000,-1500.0,0.00028943,15]
[424215721,1780669864000,-2266.07,0.00028624,2]
[424215749,1780669864000,-2266.07,0.00028818,30]
[424215747,1780669864000,-215.77576141,0.000288,10]
[424215748,1780669864000,-200.0,0.00028816,2]
[424215751,1780669864000,-268.50713634,0.00028827,2]
[424215743,1780669864000,-671.45,0.00028791,7]
[424215745,1780669864000,-1093.69,0.000288,7]
[424215750,1780669864000,-2342.93,0.0002882,30]
[424215753,1780669864000,-671.45,0.0002884,30]
[424215763,1780669864000,-475.27,0.00028963,2]
[424215752,1780669864000,-681.56,0.00028838,30]
[424215769,1780669864000,-681.56,0.00028986,30]
[424215754,1780669864000,-150.0,0.00028855,2]
[424215758,1780669864000,-671.45,0.00028938,7]
[424215757,1780669864000,-681.56,0.00028937,7]
[424215756,1780669864000,-671.45,0.00028889,2]
[424215759,1780669864000,-1500.0,0.00028943,15]
[424215755,1780669864000,-681.56,0.00028888,2]
[424215762,1780669864000,-1500.0,0.00028943,15]
[424215761,1780669864000,-1500.0,0.00028943,15]
[424215771,1780669864000,-151.0,0.00028997,7]
[424215764,1780669864000,-1449.08,0.00028963,30]
[424215772,1780669864000,-1000.0,0.00029,2]
[424215767,1780669864000,-179.97120458,0.00028971,2]
[424215768,1780669864000,-2233.22,0.00028976,30]
[424215766,1780669864000,-166.86902561,0.00028971,5]
[424215770,1780669864000,-671.45,0.00028987,30]
[424215708,1780669864000,-671.45,0.00028448,2]
[424215746,1780669864000,-2065.3,0.000288,7]
[424215744,1780669864000,-152.0,0.00028797,5]
[424215765,1780669864000,-1458.97,0.00028965,30]
[424215739,1780669864000,-1449.08,0.00028768,2]
[424215740,1780669864000,-1458.97,0.0002877,2]
[424215718,1780669864000,-681.56,0.00028592,2]
[424215714,1780669864000,-671.45,0.00028546,30]
[424215716,1780669864000,-1458.97,0.00028575,7]
[424215717,1780669864000,-2233.22,0.0002859,7]
[424215715,1780669864000,-1449.08,0.00028572,7]
[424215713,1780669864000,-681.56,0.00028543,30]
[424215724,1780669864000,-671.45,0.00028644,7]
[424215722,1780669864000,-2342.93,0.00028626,2]
[424215725,1780669864000,-15478.07,0.00028649,7]
[424215723,1780669864000,-681.56,0.00028641,7]
[424215719,1780669864000,-671.45,0.00028595,2]
[424215726,1780669864000,-681.56,0.00028691,30]
[424215720,1780669864000,-3949.0,0.000286,7]
[424215737,1780669864000,-172.0,0.00028767,14]
[424215736,1780669864000,-163.0,0.00028767,14]
[424215741,1780669864000,-2233.22,0.00028783,2]
[424215731,1780669864000,-681.56,0.0002874,2]
[424215729,1780669864000,-5347.74,0.000287,30]
[424215735,1780669864000,-513.24338333,0.00028767,60]
[424215734,1780669864000,-216.86219559,0.00028767,2]
[424215742,1780669864000,-681.56,0.00028789,7]
[424215733,1780669864000,-200.0,0.00028763,2]
[424215730,1780669864000,-559.0,0.00028739,3]
[424215732,1780669864000,-671.45,0.00028742,2]
[424215727,1780669864000,-671.45,0.00028693,30]
[424215728,1780669864000,-755.69,0.000287,14]
[424215738,1780669864000,-401.48226882,0.00028768,14]
[424215805,1780669865000,-158.0,0.00029,4]
[424215804,1780669865000,-158.0,0.00029,4]
[424215806,1780669865000,-158.0,0.00029,4]
[424215796,1780669865000,-164.0,0.00029,4]
[424215803,1780669865000,-158.0,0.00029,4]
[424215797,1780669865000,-158.0,0.00029,4]
[424215808,1780669865000,-500.0,0.00029,2]
[424215795,1780669865000,-157.0,0.00029,4]
[424215802,1780669865000,-158.0,0.00029,4]
[424215794,1780669865000,-157.0,0.00029,4]
[424215824,1780669865000,-2266.07,0.00029013,7]
[424215810,1780669865000,-500.0,0.00029,2]
[424215807,1780669865000,-500.0,0.00029,2]
[424215809,1780669865000,-5688.15405423,0.00029,5]
[424215812,1780669865000,-500.0,0.00029,2]
[424215822,1780669865000,-2000.0,0.00029,2]
[424215813,1780669865000,-215.77576141,0.00029,30]
[424215823,1780669865000,-6168.01749585,0.00029,2]
[424215818,1780669865000,-500.0,0.00029,2]
[424215799,1780669865000,-158.0,0.00029,4]
[424215815,1780669865000,-500.0,0.00029,2]
[424215811,1780669865000,-500.0,0.00029,2]
[424215793,1780669865000,-157.0,0.00029,4]
[424215781,1780669865000,-219.74560225,0.00029,2]
[424215798,1780669865000,-158.0,0.00029,4]
[424215814,1780669865000,-215.77576141,0.00029,7]
[424215775,1780669865000,-200.0,0.00029,2]
[424215778,1780669865000,-8916.48506059,0.00029,30]
[424215779,1780669865000,-1370.66592844,0.00029,2]
[424215776,1780669865000,-263.87,0.00029,2]
[424215777,1780669865000,-396.05208952,0.00029,2]
[424215773,1780669865000,-200.0,0.00029,2]
[424215774,1780669865000,-200.0,0.00029,2]
[424215780,1780669865000,-1000.45531897,0.00029,2]
[424215790,1780669865000,-157.0,0.00029,4]
[424215784,1780669865000,-5000.0,0.00029,2]
[424215788,1780669865000,-1071.78,0.00029,30]
[424215789,1780669865000,-159.0,0.00029,4]
[424215782,1780669865000,-832.22457756,0.00029,2]
[424215786,1780669865000,-164.0,0.00029,2]
[424215787,1780669865000,-1121.0,0.00029,2]
[424215783,1780669865000,-511.31569034,0.00029,2]
[424215785,1780669865000,-25057.0,0.00029,2]
[424215791,1780669865000,-157.0,0.00029,4]
[424215801,1780669865000,-158.0,0.00029,4]
[424215792,1780669865000,-157.0,0.00029,4]
[424215800,1780669865000,-158.0,0.00029,4]
[424215816,1780669865000,-500.0,0.00029,2]
[424215817,1780669865000,-500.0,0.00029,2]
[424215860,1780669865000,-323.44876924,0.00029087,2]
[424215851,1780669865000,-194.89538777,0.00029087,2]
[424215853,1780669865000,-305.9821433,0.00029087,2]
[424215850,1780669865000,-360.02506233,0.00029087,2]
[424215852,1780669865000,-350.67519569,0.00029087,2]
[424215849,1780669865000,-623.36831003,0.00029087,2]
[424215854,1780669865000,-403.51493418,0.00029087,2]
[424215857,1780669865000,-308.02372616,0.00029087,2]
[424215855,1780669865000,-372.80285684,0.00029087,2]
[424215858,1780669865000,-305.10889821,0.00029087,2]
[424215868,1780669865000,-352.80921481,0.00029087,2]
[424215867,1780669865000,-344.83357354,0.00029087,2]
[424215859,1780669865000,-223.27138197,0.00029087,2]
[424215861,1780669865000,-311.00433257,0.00029087,2]
[424215869,1780669865000,-755.69,0.000291,14]
[424215862,1780669865000,-312.9668785,0.00029087,2]
[424215863,1780669865000,-337.14150439,0.00029087,2]
[424215865,1780669865000,-356.53145752,0.00029087,2]
[424215864,1780669865000,-363.54374344,0.00029087,2]
[424215866,1780669865000,-225.72997163,0.00029087,2]
[424215870,1780669865000,-321.67112931,0.00029107,2]
[424215821,1780669865000,-500.0,0.00029,2]
[424215848,1780669865000,-342.3665482,0.00029087,2]
[424215843,1780669865000,-248.86405091,0.00029087,2]
[424215856,1780669865000,-789.49973539,0.00029087,2]
[424215841,1780669865000,-361.95654905,0.00029087,2]
[424215820,1780669865000,-6168.01749585,0.00029,2]
[424215819,1780669865000,-6168.01749586,0.00029,2]
[424215825,1780669865000,-2342.93,0.00029014,7]
[424215828,1780669865000,-360.75753956,0.00029048,2]
[424215826,1780669865000,-681.56,0.00029035,2]
[424215827,1780669865000,-671.45,0.00029036,2]
[424215844,1780669865000,-178.68242071,0.00029087,2]
[424215830,1780669865000,-671.45,0.00029085,7]
[424215834,1780669865000,-361.36053357,0.00029087,2]
[424215831,1780669865000,-196.05185014,0.00029087,2]
[424215833,1780669865000,-311.75069164,0.00029087,2]
[424215829,1780669865000,-681.56,0.00029085,7]
[424215832,1780669865000,-301.7971772,0.00029087,2]
[424215835,1780669865000,-239.50293984,0.00029087,2]
[424215839,1780669865000,-229.21765906,0.00029087,2]
[424215840,1780669865000,-346.94198403,0.00029087,2]
[424215845,1780669865000,-380.18883021,0.00029087,2]
[424215838,1780669865000,-307.69221031,0.00029087,2]
[424215846,1780669865000,-399.79448439,0.00029087,2]
[424215837,1780669865000,-317.56529079,0.00029087,2]
[424215836,1780669865000,-722.79354112,0.00029087,2]
[424215847,1780669865000,-194.90563903,0.00029087,2]
[424215842,1780669865000,-415.62760941,0.00029087,2]
[424215907,1780669866000,-179.97120458,0.00029319,2]
[424215912,1780669866000,-2186.17,0.00029362,2]
[424215908,1780669866000,-205.22997683,0.0002933,20]
[424215909,1780669866000,-475.27,0.00029354,2]
[424215914,1780669866000,-200.0,0.00029364,2]
[424215913,1780669866000,-2233.22,0.00029363,2]
[424215900,1780669866000,-183.26736966,0.00029279,2]
[424215911,1780669866000,-1458.97,0.00029356,2]
[424215910,1780669866000,-1449.08,0.00029354,2]
[424215905,1780669866000,-336.3567883,0.00029279,2]
[424215915,1780669866000,-1172.0,0.00029365,30]
[424215904,1780669866000,-154.88522891,0.00029279,2]
[424215906,1780669866000,-326.26742799,0.00029279,2]
[424215916,1780669866000,-3208.0,0.00029365,30]
[424215931,1780669866000,-2342.93,0.00029403,30]
[424215918,1780669866000,-1071.0,0.00029366,30]
[424215920,1780669866000,-4088.0,0.00029366,30]
[424215921,1780669866000,-842.0,0.00029366,30]
[424215923,1780669866000,-4454.0,0.00029366,30]
[424215926,1780669866000,-543.0,0.00029366,30]
[424215919,1780669866000,-629.0,0.00029366,30]
[424215925,1780669866000,-2256.0,0.00029366,30]
[424215928,1780669866000,-946.41,0.000294,7]
[424215927,1780669866000,-1071.78,0.00029371,30]
[424215922,1780669866000,-828.0,0.00029366,30]
[424215929,1780669866000,-2065.3,0.000294,7]
[424215924,1780669866000,-1079.0,0.00029366,30]
[424215901,1780669866000,-206.98538525,0.00029279,2]
[424215917,1780669866000,-3174.0,0.00029365,30]
[424215899,1780669866000,-345.08101722,0.00029279,2]
[424215880,1780669866000,-1458.97,0.0002916,7]
[424215895,1780669866000,-154.32416432,0.00029236,20]
[424215871,1780669866000,-375.93640316,0.00029107,2]
[424215881,1780669866000,-178.77529349,0.00029169,2]
[424215875,1780669866000,-305.61241067,0.0002913,7]
[424215873,1780669866000,-500.0,0.0002913,5]
[424215878,1780669866000,-335.49,0.00029141,2]
[424215874,1780669866000,-200.20342407,0.0002913,5]
[424215872,1780669866000,-300.0,0.0002913,7]
[424215879,1780669866000,-1449.08,0.00029159,7]
[424215876,1780669866000,-681.56,0.00029134,30]
[424215877,1780669866000,-671.45,0.00029134,30]
[424215883,1780669866000,-681.56,0.00029183,2]
[424215887,1780669866000,-681.81606327,0.00029191,2]
[424215886,1780669866000,-182.86554387,0.00029191,2]
[424215884,1780669866000,-671.45,0.00029183,2]
[424215892,1780669866000,-200.0,0.0002923,2]
[424215889,1780669866000,-2266.07,0.00029207,2]
[424215885,1780669866000,-1071.78,0.00029186,30]
[424215888,1780669866000,-416.7866462,0.00029201,2]
[424215891,1780669866000,-2342.93,0.00029209,2]
[424215890,1780669866000,-356.19152094,0.00029209,2]
[424215882,1780669866000,-2233.22,0.0002917,7]
[424215894,1780669866000,-671.57,0.00029232,7]
[424215896,1780669866000,-559.0,0.00029273,4]
[424215898,1780669866000,-208.5484187,0.00029279,2]
[424215903,1780669866000,-407.04051722,0.00029279,2]
[424215902,1780669866000,-208.13402105,0.00029279,2]
[424215897,1780669866000,-350.84944918,0.00029279,2]
[424215893,1780669866000,-681.57,0.00029232,7]
[424215941,1780669866000,-1007.13200378,0.00029533,5]
[424215982,1780669866000,-500.0,0.00029843,2]
[424215936,1780669866000,-755.69,0.000295,14]
[424215962,1780669866000,-1025.07354585,0.00029533,5]
[424215964,1780669866000,-1500.0,0.00029534,15]
[424215963,1780669866000,-1383.44660038,0.00029533,5]
[424215969,1780669866000,-2233.22,0.00029556,30]
[424215971,1780669866000,-257.13583594,0.00029587,2]
[424215970,1780669866000,-1071.78,0.00029557,30]
[424215977,1780669866000,-3265.65955674,0.00029764,2]
[424215972,1780669866000,-179.97120458,0.00029666,2]
[424215973,1780669866000,-1000.0,0.0002967,7]
[424215976,1780669866000,-200.0,0.0002976,2]
[424215975,1780669866000,-1071.78,0.00029743,30]
[424215974,1780669866000,-1000.0,0.00029688,7]
[424215978,1780669866000,-1000.0,0.00029771,7]
[424215979,1780669866000,-559.0,0.00029807,4]
[424215981,1780669866000,-1000.0,0.00029819,7]
[424215980,1780669866000,-200.0,0.00029818,2]
[424215991,1780669866000,-452.6957658,0.00029959,2]
[424215983,1780669866000,-169.62,0.00029864,3]
[424215986,1780669866000,-151.0,0.00029896,7]
[424215993,1780669866000,-467.62603747,0.00029959,2]
[424215985,1780669866000,-1121.85257231,0.00029889,7]
[424215930,1780669866000,-2266.07,0.00029402,30]
[424215992,1780669866000,-392.10370028,0.00029959,2]
[424215988,1780669866000,-200.0,0.00029912,2]
[424215987,1780669866000,-30476.0455475,0.000299,2]
[424215990,1780669866000,-251.58973221,0.00029931,2]
[424215989,1780669866000,-1071.78,0.00029929,30]
[424215960,1780669866000,-1147.45981322,0.00029533,5]
[424215961,1780669866000,-1048.71095598,0.00029533,5]
[424215984,1780669866000,-169.62,0.00029864,3]
[424215965,1780669866000,-1500.0,0.00029534,15]
[424215942,1780669866000,-1114.1245473,0.00029533,5]
[424215959,1780669866000,-1097.28857195,0.00029533,5]
[424215932,1780669866000,-955.0,0.00029439,30]
[424215933,1780669866000,-1000.0,0.00029446,7]
[424215939,1780669866000,-1097.15001724,0.00029533,5]
[424215935,1780669866000,-1093.69,0.000295,7]
[424215937,1780669866000,-201.05001,0.00029503,5]
[424215940,1780669866000,-1109.64035101,0.00029533,5]
[424215938,1780669866000,-200.0,0.00029522,2]
[424215943,1780669866000,-1050.20106573,0.00029533,5]
[424215945,1780669866000,-1110.19161114,0.00029533,5]
[424215947,1780669866000,-1144.55276949,0.00029533,5]
[424215946,1780669866000,-1097.85123642,0.00029533,5]
[424215948,1780669866000,-1011.43815789,0.00029533,5]
[424215934,1780669866000,-154.09980326,0.000295,3]
[424215951,1780669866000,-1014.32166681,0.00029533,5]
[424215949,1780669866000,-1114.78731829,0.00029533,5]
[424215966,1780669866000,-1790.940308,0.00029534,15]
[424215958,1780669866000,-1042.10818214,0.00029533,5]
[424215967,1780669866000,-150.0,0.00029534,2]
[424215957,1780669866000,-1118.43099024,0.00029533,5]
[424215944,1780669866000,-1015.98165234,0.00029533,5]
[424215968,1780669866000,-2186.17,0.00029555,30]
[424215953,1780669866000,-1135.02038663,0.00029533,5]
[424215950,1780669866000,-1025.24281998,0.00029533,5]
[424215952,1780669866000,-1006.44058943,0.00029533,5]
[424215955,1780669866000,-1108.75815328,0.00029533,5]
[424215954,1780669866000,-1108.97350149,0.00029533,5]
[424215956,1780669866000,-1143.98166005,0.00029533,5]
[424216013,1780669867000,-1084.19031168,0.00029959,2]
[424216030,1780669867000,-357.36484142,0.00029959,2]
[424216023,1780669867000,-206.20332187,0.00029959,2]
[424216025,1780669867000,-466.50649886,0.00029959,2]
[424216024,1780669867000,-446.54276394,0.00029959,2]
[424216026,1780669867000,-570.28324532,0.00029959,2]
[424216029,1780669867000,-505.71225659,0.00029959,2]
[424216027,1780669867000,-599.69172659,0.00029959,2]
[424216028,1780669867000,-469.45031775,0.00029959,2]
[424216031,1780669867000,-228.11703454,0.00029959,2]
[424216047,1780669867000,-542.93482358,0.00029979,2]
[424216034,1780669867000,-935.05246504,0.00029959,2]
[424216032,1780669867000,-165.0533866,0.00029959,2]
[424216036,1780669867000,-540.0375935,0.00029959,2]
[424216046,1780669867000,-485.17315386,0.00029979,2]
[424216035,1780669867000,-513.5498223,0.00029959,2]
[424216037,1780669867000,-389.79077554,0.00029959,2]
[424216038,1780669867000,-150.19828257,0.00029959,2]
[424216039,1780669867000,-257.73096849,0.00029959,2]
[424216042,1780669867000,-517.25036031,0.00029959,2]
[424216011,1780669867000,-559.20428525,0.00029959,2]
[424216044,1780669867000,-529.21382221,0.00029959,2]
[424216033,1780669867000,-389.81127807,0.00029959,2]
[424216012,1780669867000,-240.20559195,0.00029959,2]
[424216001,1780669867000,-284.77957631,0.00029959,2]
[424216020,1780669867000,-457.66334732,0.00029959,2]
[424216040,1780669867000,-545.31561517,0.00029959,2]
[424215994,1780669867000,-230.06886792,0.00029959,2]
[424215995,1780669867000,-479.00587968,0.00029959,2]
[424215998,1780669867000,-217.55666825,0.00029959,2]
[424215999,1780669867000,-458.43531812,0.00029959,2]
[424215997,1780669867000,-461.53831546,0.00029959,2]
[424216000,1780669867000,-520.41297605,0.00029959,2]
[424216002,1780669867000,-623.44141412,0.00029959,2]
[424216003,1780669867000,-478.43106707,0.00029959,2]
[424216005,1780669867000,-497.72810181,0.00029959,2]
[424215996,1780669867000,-201.10486381,0.00029959,2]
[424216004,1780669867000,-273.58628567,0.00029959,2]
[424216008,1780669867000,-458.97321496,0.00029959,2]
[424216007,1780669867000,-222.30575489,0.00029959,2]
[424216006,1780669867000,-526.01279353,0.00029959,2]
[424216009,1780669867000,-605.27240127,0.00029959,2]
[424216016,1780669867000,-154.47772206,0.00029959,2]
[424216018,1780669867000,-243.33337437,0.00029959,2]
[424216017,1780669867000,-476.34793618,0.00029959,2]
[424216019,1780669867000,-1184.24960308,0.00029959,2]
[424216014,1780669867000,-201.09154202,0.00029959,2]
[424216010,1780669867000,-542.04080036,0.00029959,2]
[424216015,1780669867000,-208.03935119,0.00029959,2]
[424216021,1780669867000,-462.03558925,0.00029959,2]
[424216043,1780669867000,-451.45994325,0.00029959,2]
[424216022,1780669867000,-243.76851266,0.00029959,2]
[424216045,1780669867000,-228.38145185,0.00029959,2]
[424216084,1780669867000,-1000.0,0.00030082,14]
[424216082,1780669867000,-625.17996929,0.00030076,2]
[424216085,1780669867000,-1000.0,0.00030087,7]
[424216083,1780669867000,-3265.65955674,0.00030078,2]
[424216077,1780669867000,-200.0,0.00030024,2]
[424216078,1780669867000,-200.0,0.00030024,2]
[424216081,1780669867000,-1022.7240949,0.00030065,2]
[424216079,1780669867000,-563.90460474,0.00030065,2]
[424216076,1780669867000,-179.97120458,0.00030014,2]
[424216080,1780669867000,-365.73108775,0.00030065,2]
[424216075,1780669867000,-200.0,0.0003,2]
[424216087,1780669867000,-200.0,0.00030116,2]
[424216089,1780669867000,-151.0,0.00030127,7]
[424216090,1780669867000,-151.0,0.00030127,7]
[424216088,1780669867000,-151.0,0.00030127,7]
[424216092,1780669867000,-14123.40733269,0.0003013,2]
[424216096,1780669867000,-7640.97574053,0.0003013,14]
[424216095,1780669867000,-205.57018299,0.0003013,2]
[424216094,1780669867000,-152337.4135236,0.0003013,2]
[424216093,1780669867000,-646.19632428,0.0003013,2]
[424216097,1780669867000,-302.53429542,0.0003013,2]
[424216098,1780669867000,-2373819.452597,0.0003013,7]
[424216041,1780669867000,-534.79718628,0.00029959,2]
[424216086,1780669867000,-1071.78,0.00030114,30]
[424216074,1780669867000,-215.77576141,0.0003,30]
[424216091,1780669867000,-151.0,0.00030127,7]
[424216065,1780669867000,-2065.3,0.0003,7]
[424216070,1780669867000,-650.0,0.0003,2]
[424216048,1780669867000,-482.50669397,0.00029979,2]
[424216050,1780669867000,-259.45,0.00029999,3]
[424216051,1780669867000,-605.39,0.00029999,3]
[424216052,1780669867000,-864.85,0.00029999,3]
[424216049,1780669867000,-150.0,0.00029982,2]
[424216060,1780669867000,-1000.0,0.0003,2]
[424216058,1780669867000,-1852.48124811,0.0003,2]
[424216053,1780669867000,-561.63642776,0.0003,30]
[424216057,1780669867000,-1125.09091813,0.0003,2]
[424216059,1780669867000,-899.04564997,0.0003,10]
[424216055,1780669867000,-70727.59586373,0.0003,2]
[424216054,1780669867000,-20259.24816589,0.0003,2]
[424216068,1780669867000,-26905.14504781,0.0003,5]
[424216072,1780669867000,-200.0,0.0003,2]
[424216056,1780669867000,-2000.0,0.0003,3]
[424216062,1780669867000,-4806.49535936,0.0003,24]
[424216071,1780669867000,-1941.91000824,0.0003,3]
[424216067,1780669867000,-755.69,0.0003,14]
[424216063,1780669867000,-9910.12031461,0.0003,14]
[424216066,1780669867000,-368.8693423,0.0003,30]
[424216073,1780669867000,-200.0,0.0003,2]
[424216064,1780669867000,-193.11747524,0.0003,2]
[424216061,1780669867000,-166.13870843,0.0003,2]
[424216069,1780669867000,-18495.70618945,0.0003,2]
[424216100,1780669868000,-3937.44915814,0.0003013,7]
[424216099,1780669868000,-1.44325499,0.0003013,7]
[424216111,1780669869000,-1918.15308054,0.0003013,2]
[424216114,1780669869000,-151.0,0.0003013,7]
[424216120,1780669869000,-185.576005,0.0003013,7]
[424216126,1780669869000,-151.0,0.0003013,7]
[424216127,1780669869000,-151.0,0.0003013,7]
[424216119,1780669869000,-185.576005,0.0003013,7]
[424216121,1780669869000,-185.576005,0.0003013,7]
[424216129,1780669869000,-151.0,0.0003013,7]
[424216109,1780669869000,-2219.05,0.00029557,30]
[424216122,1780669869000,-185.576005,0.0003013,7]
[424216123,1780669869000,-151.0,0.0003013,7]
[424216125,1780669869000,-193.069062,0.0003013,7]
[424216128,1780669869000,-151.0,0.0003013,7]
[424216113,1780669869000,-151.0,0.0003013,7]
[424216102,1780669869000,-992.0,0.0002,2]
[424216112,1780669869000,-151.0,0.0003013,7]
[424216108,1780669869000,-2219.05,0.00029364,2]
[424216107,1780669869000,-2219.05,0.00029171,7]
[424216118,1780669869000,-180.808887,0.0003013,7]
[424216117,1780669869000,-151.0,0.0003013,7]
[424216115,1780669869000,-1094.26313574,0.0003013,2]
[424216116,1780669869000,-151.0,0.0003013,7]
[424216106,1780669869000,-2219.05,0.00028978,30]
[424216105,1780669869000,-2219.05,0.00028785,2]
[424216101,1780669869000,-151.0,0.00013699,2]
[424216104,1780669869000,-2219.05,0.00028592,7]
[424216103,1780669869000,-2219.05,0.000284,30]
[424216124,1780669869000,-151.0,0.0003013,7]
[424216110,1780669869000,-714291.13464998,0.0003013,7]
[424216130,1780669869000,-453.57540836,0.00030136,14]
[424216131,1780669869000,-200.0,0.00030136,2]
[424216135,1780669869000,-1000.0,0.00030137,120]
[424216133,1780669869000,-854.09,0.00030137,2]
[424216155,1780669869000,-500.0,0.00030137,3]
[424216160,1780669869000,-550.0,0.00030137,2]
[424216157,1780669869000,-1412.28688489,0.00030137,120]
[424216154,1780669869000,-150.0,0.00030137,2]
[424216159,1780669869000,-550.0,0.00030137,2]
[424216156,1780669869000,-22291.99451805,0.00030137,120]
[424216144,1780669869000,-500.0,0.00030137,3]
[424216143,1780669869000,-500.0,0.00030137,3]
[424216151,1780669869000,-250.0,0.00030137,2]
[424216150,1780669869000,-250.0,0.00030137,2]
[424216152,1780669869000,-250.0,0.00030137,2]
[424216153,1780669869000,-210.83079115,0.00030137,2]
[424216149,1780669869000,-250.0,0.00030137,2]
[424216158,1780669869000,-500.0,0.00030137,3]
[424216146,1780669869000,-500.0,0.00030137,3]
[424216134,1780669869000,-301.52,0.00030137,2]
[424216148,1780669869000,-500.0,0.00030137,3]
[424216136,1780669869000,-2500.0,0.00030137,120]
[424216132,1780669869000,-150.00000001,0.00030136,2]
[424216137,1780669869000,-22687.17,0.00030137,120]
[424216138,1780669869000,-169.46407248,0.00030137,2]
[424216161,1780669869000,-415.0,0.00030137,2]
[424216140,1780669869000,-508.39221743,0.00030137,2]
[424216141,1780669869000,-238.94,0.00030137,2]
[424216142,1780669869000,-500.0,0.00030137,3]
[424216147,1780669869000,-500.0,0.00030137,3]
[424216139,1780669869000,-338.92814495,0.00030137,2]
[424216145,1780669869000,-500.0,0.00030137,3]
[424216184,1780669870000,-1500.0,0.00030137,15]
[424216188,1780669870000,-359.43,0.00030137,2]
[424216185,1780669870000,-323.76,0.00030137,2]
[424216186,1780669870000,-312.95,0.00030137,2]
[424216187,1780669870000,-307.55,0.00030137,2]
[424216189,1780669870000,-385.38,0.00030137,2]
[424216194,1780669870000,-150.0,0.00030137,2]
[424216205,1780669870000,-416.26804211,0.00030156,2]
[424216204,1780669870000,-413.97077049,0.00030156,2]